fUSD/lending_fUSD_20260118
["ID","MTS","AMOUNT","RATE_DAILY","PERIOD"]
[402643090,1768740631898,-33447.77459201,0.00015371,2]
[402643092,1768740631909,-29572.59248662,0.00015371,2]
[402643093,1768740631920,-610.53759736,0.00015371,2]
[402643096,1768740631931,-2170.0,0.00015371,2]
[402643098,1768740631942,-3268.61254982,0.00015371,2]
[402643100,1768740631953,-377.31590528,0.00015371,2]
[402643103,1768740631972,-422.81516774,0.00015371,2]
[402643105,1768740631983,-2518.52160099,0.00015371,2]
[402643109,1768740632006,-1827.19977447,0.00015371,2]
[402643111,1768740632018,-353508.8769,0.00015371,2]
[402643113,1768740632029,-371.3259998,0.00015371,2]
[402643115,1768740632041,-797.59445327,0.00015371,2]
[402643117,1768740632052,-1182.23847243,0.00015371,2]
[402643119,1768740637793,-476.34787676,0.0001537,2]
[402643120,1768740637803,-167.9361227,0.0001537,2]
[402643121,1768740637813,-500.0,0.0001537,2]
[402643122,1768740637822,-500.0,0.0001537,2]
[402643123,1768740637831,-500.0,0.0001537,2]
[402643124,1768740637841,-500.0,0.0001537,2]
[402643125,1768740637850,-500.0,0.0001537,2]
[402643126,1768740637860,-500.0,0.0001537,2]
[402643127,1768740637869,-500.0,0.0001537,2]
[402643128,1768740637879,-500.0,0.0001537,2]
[402643129,1768740637890,-590.46400217,0.0001537,2]
[402643130,1768740637900,-500.0,0.0001537,2]
[402643131,1768740637909,-500.0,0.0001537,2]
[402643132,1768740637920,-500.0,0.0001537,2]
[402643133,1768740637929,-13821.5151248,0.00015371,2]
[402643134,1768740638606,-754.07848955,0.00015371,2]
[402643135,1768740638645,-3342.46626735,0.00015371,2]
[402643136,1768740638688,-787.36629238,0.00015371,2]
[402643138,1768740639774,-11832.38440721,0.00015371,2]
[402643139,1768740639786,-13432.52261709,0.00015371,2]
[402643140,1768740639797,-19138.23941,0.00015371,2]
[402643141,1768740639808,-2447.56425142,0.00015371,2]
[402643142,1768740639889,-5653.74009664,0.00015371,2]
[402643143,1768740639999,-1119.9698822,0.00015371,2]
[402643144,1768740640054,-327.99999999,0.00015371,2]
[402643145,1768740640065,-626.36847836,0.00015371,2]
[402643146,1768740640076,-369.0,0.00015371,2]
[402643147,1768740640416,-205288.45465563,0.00015371,2]
[402643148,1768740640425,-1018.2026,0.00015471,2]
[402643149,1768740640435,-161.31560849,0.00015471,2]
[402643150,1768740640445,-2149.08283654,0.00015507,2]
[402643151,1768740640454,-2875.19048369,0.00015507,2]
[402643152,1768740640463,-215.36640459,0.00015507,2]
[402643153,1768740640473,-198.20144377,0.00015507,2]
[402643154,1768740640482,-608.61424855,0.0001557,2]
[402643155,1768740640491,-391.996,0.0001557,2]
[402643156,1768740640501,-150.0,0.0001557,2]
[402643157,1768740640510,-166.66,0.00015607,2]
[402643158,1768740640519,-500.0,0.0001567,2]
[402643159,1768740640528,-500.0,0.0001567,2]
[402643160,1768740640538,-500.0,0.0001567,2]
[402643161,1768740640547,-500.0,0.0001567,2]
[402643162,1768740640556,-179.37709203,0.0001567,2]
[402643163,1768740640566,-500.0,0.0001567,2]
[402643164,1768740640575,-500.0,0.0001567,2]
[402643165,1768740640584,-551.01907278,0.0001567,2]
[402643166,1768740640594,-151.0,0.0001572,2]
[402643167,1768740640603,-279.1594591,0.00015731,2]
[402643168,1768740640613,-2149.08283646,0.00015773,2]
[402643169,1768740640622,-2875.19048367,0.00015773,2]
[402643170,1768740640632,-195.0,0.00015834,2]
[402643171,1768740640641,-600.0,0.00015834,2]
[402643172,1768740640651,-195.0,0.00015834,2]
[402643173,1768740640660,-166.66,0.0001591,2]
[402643174,1768740640670,-373.22,0.00015918,2]
[402643175,1768740640679,-500.0,0.00015973,2]
[402643176,1768740640690,-500.0,0.00015973,2]
[402643177,1768740640699,-304.23142224,0.00015973,2]
[402643178,1768740640709,-500.0,0.00015973,2]
[402643179,1768740640719,-500.0,0.00015973,2]
[402643180,1768740640730,-2149.08283646,0.00016039,2]
[402643181,1768740640740,-2875.19048367,0.00016039,2]
[402643182,1768740640749,-221.23,0.00016069,2]
[402643183,1768740640758,-279.1594591,0.00016093,2]
[402643184,1768740640769,-150.0,0.000162,2]
[402643185,1768740640778,-150.0,0.000162,2]
[402643186,1768740640787,-150.0,0.000162,2]
[402643187,1768740640798,-150.0,0.000162,2]
[402643188,1768740640807,-150.0,0.000162,2]
[402643189,1768740640822,-150.0,0.000162,2]
[402643190,1768740640833,-150.0,0.000162,2]
[402643191,1768740640842,-150.39481531,0.000162,2]
[402643192,1768740640851,-170.37649707,0.000162,2]
[402643193,1768740640861,-150.0,0.000162,2]
[402643194,1768740640870,-150.0,0.000162,2]
[402643195,1768740640881,-150.48546304,0.000162,2]
[402643196,1768740640890,-150.62813761,0.000162,2]
[402643197,1768740640900,-150.0,0.000162,2]
[402643198,1768740640910,-1554.6,0.000162,2]
[402643199,1768740640923,-2149.08283646,0.00016305,2]
[402643200,1768740640932,-2875.19048367,0.00016305,2]
[402643201,1768740640941,-833.0,0.000164,2]
[402643202,1768740640951,-1000.0,0.00016438,2]
[402643203,1768740640960,-1000.0,0.00016438,2]
[402643204,1768740640969,-671.44774677,0.00016438,2]
[402643205,1768740640979,-212.23328331,0.00016438,2]
[402643206,1768740640988,-500.0,0.00016438,2]
[402643207,1768740640997,-500.0,0.00016438,2]
[402643208,1768740641007,-500.0,0.00016438,2]
[402643209,1768740641016,-500.0,0.00016438,2]
[402643210,1768740641026,-500.0,0.00016438,2]
[402643211,1768740641036,-500.0,0.00016438,2]
[402643212,1768740641045,-500.0,0.00016438,2]
[402643213,1768740641055,-500.0,0.00016438,2]
[402643214,1768740641064,-500.0,0.00016438,2]
[402643215,1768740641078,-500.0,0.00016438,2]
[402643216,1768740641087,-500.0,0.00016438,2]
[402643217,1768740641096,-500.0,0.00016438,2]
[402643218,1768740641106,-500.0,0.00016438,2]
[402643219,1768740641115,-500.0,0.00016438,2]
[402643220,1768740641123,-500.0,0.00016438,2]
[402643221,1768740641133,-500.0,0.00016438,2]
[402643222,1768740641142,-500.0,0.00016438,2]
[402643223,1768740641151,-504.31183971,0.00016438,2]
[402643224,1768740641160,-500.0,0.00016438,2]
[402643225,1768740641170,-500.0,0.00016438,2]
[402643226,1768740641180,-500.0,0.00016438,2]
[402643227,1768740641189,-500.0,0.00016438,2]
[402643228,1768740641199,-500.0,0.00016438,2]
[402643229,1768740641208,-500.0,0.00016438,2]
[402643230,1768740641217,-500.0,0.00016438,2]
[402643231,1768740641226,-500.0,0.00016438,2]
[402643232,1768740641236,-500.0,0.00016438,2]
[402643233,1768740641245,-500.0,0.00016438,2]
[402643234,1768740641254,-500.0,0.00016438,2]
[402643235,1768740641263,-500.0,0.00016438,2]
[402643236,1768740641273,-500.0,0.00016438,2]
[402643237,1768740641282,-500.0,0.00016438,2]
[402643238,1768740641291,-926.0,0.00016438,2]
[402643239,1768740641300,-600.0,0.00016438,2]
[402643240,1768740641310,-279.1594591,0.00016454,2]
[402643241,1768740641321,-1554.6,0.00016474,2]
[402643242,1768740641332,-373.22,0.00016515,2]
[402643243,1768740641342,-500.0,0.00016521,2]
[402643244,1768740641351,-382.76820555,0.00016521,2]
[402643245,1768740641360,-500.0,0.00016521,2]
[402643246,1768740641370,-500.0,0.00016521,2]
[402643247,1768740641379,-2149.08283646,0.00016571,2]
[402643248,1768740641388,-2875.19048367,0.00016571,2]
[402643249,1768740641398,-198.20144376,0.00016704,2]
[402643250,1768740641407,-600.0,0.00016712,2]
[402643251,1768740641418,-1554.6,0.00016748,2]
[402643252,1768740641428,-2149.08283646,0.00016836,2]
[402643253,1768740641438,-2875.19048367,0.00016836,2]
[402643254,1768740641447,-1680.0,0.000169,2]
[402643255,1768740641457,-600.0,0.00016986,2]
[402643256,1768740641466,-500.0,0.00017,7]
[402643257,1768740641476,-500.0,0.00017,7]
[402643258,1768740641486,-500.0,0.00017,7]
[402643259,1768740641495,-500.0,0.00017,7]
[402643260,1768740641505,-500.0,0.00017,7]
[402643261,1768740641515,-500.0,0.00017,7]
[402643262,1768740641524,-500.0,0.00017,7]
[402643263,1768740641535,-500.0,0.00017,7]
[402643264,1768740641543,-500.0,0.00017,7]
[402643265,1768740641554,-500.0,0.00017,7]
[402643266,1768740641564,-500.0,0.00017,7]
[402643267,1768740641574,-500.0,0.00017,7]
[402643268,1768740641584,-500.0,0.00017,7]
[402643269,1768740641593,-500.0,0.00017,7]
[402643270,1768740641603,-500.0,0.00017,7]
[402643271,1768740641612,-500.0,0.00017,7]
[402643272,1768740641622,-500.0,0.00017,7]
[402643273,1768740641631,-500.0,0.00017,7]
[402643274,1768740641641,-500.0,0.00017,7]
[402643275,1768740641650,-500.0,0.00017,7]
[402643276,1768740641660,-250.0,0.00017,2]
[402643277,1768740641669,-500.0,0.00017,7]
[402643278,1768740641679,-500.0,0.00017,7]
[402643279,1768740641688,-500.0,0.00017,7]
[402643280,1768740641698,-500.0,0.00017,7]
[402643281,1768740641707,-500.0,0.00017,7]
[402643282,1768740641717,-500.0,0.00017,7]
[402643283,1768740641729,-500.0,0.00017,7]
[402643284,1768740641739,-500.0,0.00017,7]
[402643285,1768740641748,-500.0,0.00017,7]
[402643286,1768740641757,-500.0,0.00017,7]
[402643287,1768740641766,-500.0,0.00017,7]
[402643288,1768740641776,-500.0,0.00017,7]
[402643289,1768740641785,-500.0,0.00017,7]
[402643290,1768740641795,-500.0,0.00017,7]
[402643291,1768740641803,-500.0,0.00017,7]
[402643292,1768740641813,-500.0,0.00017,7]
[402643293,1768740642093,-500.0,0.00017,7]
[402643294,1768740642103,-500.0,0.00017,7]
[402643295,1768740642112,-512.58,0.00017,7]
[402643296,1768740642122,-500.0,0.00017,7]
[402643297,1768740642131,-500.0,0.00017,7]
[402643298,1768740642141,-500.0,0.00017,7]
[402643299,1768740642151,-500.0,0.00017,7]
[402643300,1768740642161,-500.0,0.00017,7]
[402643301,1768740642171,-500.0,0.00017,7]
[402643302,1768740642180,-500.0,0.00017,7]
[402643303,1768740642191,-500.0,0.00017,7]
[402643304,1768740642201,-500.0,0.00017,7]
[402643305,1768740642211,-500.0,0.00017,7]
[402643306,1768740642222,-500.0,0.00017,7]
[402643307,1768740642234,-500.0,0.00017,7]
[402643308,1768740642245,-500.0,0.00017,7]
[402643309,1768740642255,-500.0,0.00017,7]
[402643310,1768740642265,-500.0,0.00017,7]
[402643311,1768740642275,-500.0,0.00017,7]
[402643312,1768740642284,-500.0,0.00017,7]
[402643313,1768740642293,-500.0,0.00017,7]
[402643314,1768740642303,-500.0,0.00017,7]
[402643315,1768740642312,-500.0,0.00017,7]
[402643316,1768740642323,-500.0,0.00017,7]
[402643317,1768740642332,-500.0,0.00017,7]
[402643318,1768740642342,-500.0,0.00017,7]
[402643319,1768740642352,-500.0,0.00017,7]
[402643320,1768740642363,-500.0,0.00017,7]
[402643321,1768740642373,-500.0,0.00017,7]
[402643322,1768740642383,-500.0,0.00017,7]
[402643323,1768740642393,-500.0,0.00017,7]
[402643324,1768740642403,-500.0,0.00017,7]
[402643325,1768740642412,-500.0,0.00017,7]
[402643326,1768740642422,-500.0,0.00017,7]
[402643327,1768740642431,-500.0,0.00017,7]
[402643328,1768740642440,-500.0,0.00017,7]
[402643329,1768740642450,-1554.6,0.00017022,2]
[402643330,1768740642459,-154.32,0.00017041,2]
[402643331,1768740642469,-660.99739858,0.00017099,2]
[402643333,1768740642479,-4001.0,0.00017099,2]
[402643336,1768740642488,-574.12855637,0.00017099,2]
[402643338,1768740642497,-2149.08283646,0.00017102,2]
[402643341,1768740642506,-2875.19048367,0.00017102,2]
[402643344,1768740642516,-373.22,0.00017112,2]
[402643347,1768740642525,-164.45281015,0.00017166,2]
[402643349,1768740642534,-150.0,0.00017187,2]
[402643350,1768740642543,-600.0,0.0001726,2]
[402643352,1768740642552,-1554.6,0.00017296,2]
[402643355,1768740642561,-150.0,0.00017343,2]
[402643356,1768740642571,-2503.0,0.00017348,2]
[402643358,1768740642580,-2149.08283646,0.00017368,2]
[402643360,1768740642590,-2875.19048367,0.00017368,2]
[402643361,1768740642599,-221.23,0.00017439,2]
[402643363,1768740642609,-391.4262,0.00017447,2]
[402643366,1768740642619,-2503.0,0.00017457,2]
[402643368,1768740642628,-5888.0,0.00017496,2]
[402643371,1768740642637,-2000.0,0.000175,2]
[402643373,1768740642647,-600.0,0.00017534,2]
[402643374,1768740642656,-1000.0,0.00017534,2]
[402643375,1768740642665,-1554.6,0.0001757,2]
[402643376,1768740642675,-153.00604463,0.00017589,2]
[402643377,1768740642684,-500.0,0.00017589,2]
[402643378,1768740642693,-150.0,0.00017589,2]
[402643379,1768740642703,-500.0,0.00017589,2]
[402643380,1768740642712,-2149.08283646,0.00017634,2]
[402643381,1768740642724,-2875.19048367,0.00017634,2]
[402643382,1768740642734,-3191.87447378,0.0001764,2]
[402643383,1768740642743,-501.86548223,0.00017644,2]
[402643384,1768740642752,-150.0,0.00017644,2]
[402643385,1768740642763,-500.0,0.00017644,2]
[402643386,1768740642772,-595.37131296,0.00017647,2]
[402643387,1768740642782,-500.0,0.00017665,2]
[402643388,1768740642792,-150.0,0.00017699,2]
[402643389,1768740642802,-500.0,0.00017699,2]
[402643390,1768740642811,-373.22,0.00017709,2]
[402643391,1768740642821,-150.0,0.00017721,2]
[402643392,1768740642830,-8759.91,0.00017728,5]
[402643393,1768740642839,-150.0,0.00017731,2]
[402643394,1768740642849,-1000.0,0.00017737,2]
[402643395,1768740642859,-1000.0,0.00017737,2]
[402643396,1768740642868,-1000.0,0.0001774,2]
[402643397,1768740642877,-1000.0,0.00017748,2]
[402643398,1768740642886,-1000.0,0.00017751,2]
[402643399,1768740642895,-150.0,0.00017753,2]
[402643400,1768740642904,-500.0,0.00017753,2]
[402643401,1768740642914,-1000.0,0.00017755,2]
[402643402,1768740642923,-1000.0,0.00017758,2]
[402643403,1768740642933,-1000.0,0.00017764,2]
[402643404,1768740642942,-1000.0,0.00017775,2]
[402643405,1768740642951,-1000.0,0.00017776,2]
[402643406,1768740642960,-1000.0,0.00017786,2]
[402643407,1768740642969,-1000.0,0.0001779,2]
[402643408,1768740642978,-268.45858718,0.00017801,2]
[402643409,1768740642987,-1000.0,0.00017806,2]
[402643410,1768740642997,-500.0,0.00017808,2]
[402643411,1768740643006,-150.0,0.00017808,2]
[402643412,1768740643016,-500.0,0.00017808,2]
[402643413,1768740643025,-600.0,0.00017808,2]
[402643414,1768740643034,-1000.0,0.00017808,2]
[402643415,1768740643043,-1000.0,0.0001782,2]
[402643416,1768740643052,-1000.0,0.0001782,2]
[402643417,1768740643062,-1000.0,0.00017822,2]
[402643418,1768740643070,-1000.0,0.00017826,2]
[402643419,1768740643080,-731.54141282,0.00017838,2]
[402643420,1768740643090,-1554.6,0.00017844,2]
[402643421,1768740643100,-1000.0,0.00017848,2]
[402643422,1768740643109,-3473.0,0.00017852,2]
[402643423,1768740643118,-615.0,0.00017852,2]
[402643424,1768740643128,-1407.0,0.00017852,2]
[402643425,1768740643137,-1331.0,0.00017852,2]
[402643426,1768740643146,-1268.0,0.00017852,2]
[402643427,1768740643155,-412.0,0.00017852,2]
[402643428,1768740643164,-1202.0,0.00017852,2]
[402643429,1768740643173,-6562.0,0.00017852,2]
[402643430,1768740643182,-4915.957,0.00017852,2]
[402643431,1768740643191,-2439.0,0.00017852,2]
[402643432,1768740643200,-200.0,0.00017856,2]
[402643433,1768740643210,-500.0,0.00017863,2]
[402643434,1768740643219,-500.0,0.00017863,2]
[402643435,1768740643228,-150.0,0.00017872,2]
[402643436,1768740643238,-1000.0,0.00017874,2]
[402643437,1768740643247,-150.0,0.00017895,2]
[402643438,1768740643256,-2503.0,0.00017898,2]
[402643439,1768740643265,-5888.0,0.00017899,2]
[402643440,1768740643274,-5800.0,0.000179,2]
[402643441,1768740643283,-10000.0,0.000179,2]
[402643442,1768740643293,-161.31560848,0.000179,2]
[402643443,1768740643301,-699.31027164,0.000179,2]
[402643444,1768740643310,-467.49211515,0.000179,2]
[402643445,1768740643319,-467.49211501,0.000179,2]
[402643446,1768740643328,-467.49211501,0.000179,2]
[402643447,1768740643338,-467.49211501,0.000179,2]
[402643448,1768740643350,-467.49211501,0.000179,2]
[402643449,1768740643360,-467.49211501,0.000179,2]
[402643450,1768740643369,-467.49211501,0.000179,2]
[402643451,1768740643381,-2149.08283646,0.000179,2]
[402643452,1768740643390,-1688.0063006,0.000179,2]
[402643453,1768740643400,-467.49211501,0.000179,2]
[402643454,1768740643409,-467.49211501,0.000179,2]
[402643455,1768740643419,-467.49211501,0.000179,2]
[402643456,1768740643429,-467.49211501,0.000179,2]
[402643457,1768740643439,-467.49211501,0.000179,2]
[402643458,1768740643448,-467.49211501,0.000179,2]
[402643459,1768740643458,-467.49211501,0.000179,2]
[402643460,1768740643468,-467.49211501,0.000179,2]
[402643461,1768740643478,-467.49211501,0.000179,2]
[402643462,1768740643487,-467.49211501,0.000179,2]
[402643463,1768740643497,-467.49211501,0.000179,2]
[402643464,1768740643507,-467.49211501,0.000179,2]
[402643465,1768740643516,-198.20144376,0.000179,2]
[402643466,1768740643525,-3092.052693,0.000179,2]
[402643467,1768740643535,-467.49211501,0.000179,2]
[402643468,1768740643544,-1249.39886294,0.000179,2]
[402643469,1768740643554,-2875.19048367,0.000179,2]
[402643470,1768740643564,-2480.83969998,0.000179,2]
[402643471,1768740643573,-211.61539095,0.000179,3]
[402643472,1768740643583,-829.5534708,0.000179,2]
[402643473,1768740643592,-500.0,0.000179,2]
[402643474,1768740643601,-500.0,0.000179,2]
[402643475,1768740643610,-500.0,0.000179,2]
[402643476,1768740643619,-500.0,0.000179,2]
[402643477,1768740643634,-500.0,0.000179,2]
[402643478,1768740643643,-500.0,0.000179,2]
[402643479,1768740643652,-4426.0,0.000179,2]
[402643480,1768740643662,-500.0,0.00017918,2]
[402643481,1768740643671,-500.0,0.00017918,2]
[402643482,1768740643680,-1000.0,0.00017921,2]
[402643483,1768740643689,-409.96687693,0.00017935,2]
[402643484,1768740643699,-1000.0,0.00017938,2]
[402643485,1768740643708,-1000.0,0.00017946,2]
[402643486,1768740643719,-150.0,0.00017946,2]
[402643487,1768740643731,-250.0,0.00017951,2]
[402643488,1768740643740,-1000.0,0.00017953,2]
[402643489,1768740643750,-1000.0,0.00017957,2]
[402643490,1768740643759,-1000.0,0.00017959,2]
[402643491,1768740643769,-1000.0,0.0001796,2]
[402643492,1768740643778,-731.54141282,0.00017968,2]
[402643493,1768740643787,-661.50728786,0.0001797,2]
[402643494,1768740643796,-500.0,0.00017972,2]
[402643495,1768740643806,-500.0,0.00017973,2]
[402643496,1768740643815,-765.0,0.00017973,2]
[402643497,1768740643824,-500.0,0.00017973,2]
[402643498,1768740643834,-500.0,0.00017973,2]
[402643499,1768740643843,-237.81029679,0.00017973,2]
[402643500,1768740643852,-150.0,0.00017973,2]
[402643501,1768740643861,-500.0,0.00017973,2]
[402643502,1768740643870,-500.0,0.00017973,2]
[402643503,1768740643880,-500.0,0.00017973,2]
[402643504,1768740643889,-500.0,0.00017973,2]
[402643505,1768740643899,-500.0,0.00017973,2]
[402643506,1768740643908,-500.0,0.00017973,2]
[402643507,1768740643918,-150.0,0.00017973,2]
[402643508,1768740643928,-1000.0,0.00017985,2]
[402643509,1768740643937,-155.6514004,0.0001799,2]
[402643510,1768740643946,-155.6514004,0.0001799,2]
[402643511,1768740643956,-155.6514004,0.0001799,2]
[402643512,1768740643965,-1000.0,0.00017993,2]
[402643513,1768740643975,-1000.0,0.00017997,2]
[402643514,1768740643984,-567.8712304,0.00017999,2]
[402643515,1768740643993,-261.35951101,0.00017999,2]
[402643516,1768740644003,-300.0,0.00017999,2]
[402643517,1768740644012,-500.0,0.00017999,2]
[402643518,1768740644021,-500.0,0.00017999,2]
[402643519,1768740644031,-500.0,0.00017999,2]
[402643520,1768740644040,-500.0,0.00017999,2]
[402643521,1768740644049,-500.0,0.00017999,2]
[402643522,1768740644059,-500.0,0.00017999,2]
[402643523,1768740644067,-500.0,0.00017999,2]
[402643524,1768740644076,-500.0,0.00017999,2]
[402643525,1768740644085,-500.0,0.00017999,2]
[402643526,1768740644094,-500.0,0.00017999,2]
[402643527,1768740644103,-500.0,0.00017999,2]
[402643528,1768740644112,-500.0,0.00017999,2]
[402643529,1768740644121,-500.0,0.00017999,2]
[402643530,1768740644129,-500.0,0.00017999,2]
[402643531,1768740644139,-500.0,0.00017999,2]
[402643532,1768740644148,-155.0,0.00017999,2]
[402643533,1768740644157,-300.0,0.00017999,2]
[402643534,1768740644166,-300.0,0.00017999,2]
[402643535,1768740644175,-670.55457234,0.00017999,2]
[402643536,1768740644184,-300.0,0.00017999,2]
[402643537,1768740644193,-666.0,0.00017999,2]
[402643538,1768740644202,-300.0,0.00017999,2]
[402643539,1768740644211,-666.0,0.00017999,2]
[402643540,1768740644220,-300.0,0.00017999,2]
[402643541,1768740644229,-150.0,0.00018,2]
[402643542,1768740644238,-150.0,0.00018,2]
[402643543,1768740644247,-150.0,0.00018,2]
[402643544,1768740644257,-150.0,0.00018,2]
[402643545,1768740644266,-265.5663701,0.00018,2]
[402643546,1768740644275,-236.45405301,0.00018,2]
[402643547,1768740644284,-1002.61682753,0.00018,2]
[402643548,1768740644293,-2099408.60847036,0.00018,2]
[402643549,1768740644308,-498.78000008,0.00018,2]
[402643552,1768740645191,-780.16166187,0.00018,2]
[402643553,1768740645205,-868.02209989,0.00018,2]
[402643554,1768740645219,-2593.85165831,0.00018,2]
[402643555,1768740645232,-754.16000023,0.00018,2]
[402643565,1768740645951,-867.81857881,0.00018,2]
[402643567,1768740646234,-1016.74074216,0.00018,2]
[402643568,1768740646246,-3860.74999985,0.00018,2]
[402643569,1768740646257,-530.23719591,0.00018,2]
[402643570,1768740646268,-13960.82583248,0.00018,2]
[402643571,1768740646284,-2790.4119159,0.00018,2]
[402643572,1768740646365,-279.1594591,0.00016816,2]
[402643573,1768740646374,-1006.6405409,0.00018,2]
[402643574,1768740651947,462.01,0.00027397,120]
[402643576,1768740733324,824.3,0.00025525,120]
[402643577,1768741294841,400.0,0.00027392,120]
[402643579,1768741360764,1000.0,0.00027397,120]
[402643580,1768741371394,1000.0,0.00027397,120]
[402643581,1768741383528,1000.0,0.00027397,120]
[402643582,1768741411880,1000.0,0.00027397,120]
[402643583,1768741423758,1000.0,0.00027397,120]
[402643584,1768741434169,1000.0,0.00027397,120]
[402643585,1768741504275,156.65,7.804e-05,2]
[402643588,1768741764102,-151.0,0.00014,2]
[402643589,1768741831751,-391.996,0.00015063,2]
[402643590,1768741831761,-195.0,0.00015117,2]
[402643591,1768741831771,-215.36640459,0.0001517,2]
[402643592,1768741831780,-300.0,0.0001517,2]
[402643593,1768741831790,-1200.0,0.0001517,2]
[402643594,1768741831800,-10918.62911003,0.00015171,2]
[402643595,1768741831819,-658.19883048,0.00015171,2]
[402643596,1768741831830,-300.0,0.00015171,2]
[402643597,1768741831842,-1095.57428476,0.00015171,2]
[402643598,1768741831853,-272.9492298,0.00015171,2]
[402643599,1768741831864,-728.91649147,0.00015171,2]
[402643600,1768741831874,-2279.48107587,0.00015171,2]
[402643601,1768741831885,-741.54979015,0.00015171,2]
[402643602,1768741831921,-3096.30824948,0.00015171,2]
[402643603,1768741831932,-288.54096133,0.00015171,2]
[402643604,1768741831979,-588.97499999,0.00015171,2]
[402643607,1768741837958,-333.44351373,0.0001517,2]
[402643608,1768741837967,-392.95648627,0.0001517,2]
[402643617,1768741840360,-107.04351373,0.0001517,2]
[402643618,1768741840370,-176.71822246,0.0001517,2]
[402643619,1768741840380,-194619.12577664,0.00015171,2]
[402643620,1768741840390,-300.0,0.0001527,2]
[402643621,1768741840399,-1018.2026,0.00015271,2]
[402643622,1768741840408,-4348.97472505,0.000153,2]
[402643623,1768741840418,-3920.07051737,0.000153,2]
[402643624,1768741840427,-248.89680862,0.000153,2]
[402643625,1768741840436,-608.61424855,0.0001537,2]
[402643626,1768741840446,-500.0,0.0001537,2]
[402643627,1768741840455,-500.0,0.0001537,2]
[402643628,1768741840464,-500.0,0.0001537,2]
[402643629,1768741840474,-500.0,0.0001537,2]
[402643630,1768741840483,-500.0,0.0001537,2]
[402643631,1768741840492,-500.0,0.0001537,2]
[402643632,1768741840501,-510.914429,0.0001537,2]
[402643633,1768741840510,-500.0,0.0001537,2]
[402643634,1768741840520,-179.37709203,0.0001537,2]
[402643635,1768741840529,-500.0,0.0001537,2]
[402643636,1768741840539,-150.0,0.0001537,2]
[402643637,1768741840550,-4435.0,0.0001537,2]
[402643638,1768741840559,-600.0,0.000154,2]
[402643639,1768741840569,-161.31560849,0.0001547,2]
[402643640,1768741840578,-1000.0,0.0001557,2]
[402643641,1768741840587,-500.0,0.0001557,2]
[402643642,1768741840596,-500.0,0.0001557,2]
[402643643,1768741840605,-500.0,0.0001557,2]
[402643644,1768741840615,-500.0,0.0001557,2]
[402643645,1768741840625,-4348.97472501,0.00015589,2]
[402643646,1768741840634,-3920.07051731,0.00015589,2]
[402643647,1768741840644,-150.49,0.00015606,2]
[402643648,1768741840653,-156.65,0.00015608,2]
[402643649,1768741840663,-248.89680859,0.00015671,2]
[402643650,1768741840673,-151.0,0.00015712,2]
[402643651,1768741840682,-151.0,0.00015712,2]
[402643652,1768741840691,-151.0,0.00015714,2]
[402643653,1768741840700,-151.0,0.00015714,2]
[402643654,1768741840710,-166.66,0.00015743,2]
[402643655,1768741840719,-4348.97472501,0.00015878,2]